fUSD/lending_fUSD_20260308
["ID","MTS","AMOUNT","RATE_DAILY","PERIOD"]
[407963430,1772939440653,-250.0,0.00015,2]
[407963431,1772939440662,-500.0,0.00015,30]
[407963432,1772939440672,-502.5913347,0.00015,30]
[407963433,1772939440681,-169.30895485,0.00015,30]
[407963434,1772939440690,-174.03932816,0.00015,30]
[407963435,1772939440699,-712.77484935,0.00015,30]
[407963437,1772939440708,-500.0,0.00015,30]
[407963439,1772939440716,-500.0,0.00015,30]
[407963441,1772939440726,-346.19138645,0.00015,30]
[407963442,1772939440734,-392.76826941,0.00015,30]
[407963444,1772939440743,-559.35185041,0.00015,30]
[407963445,1772939440752,-500.0,0.00015,30]
[407963446,1772939440762,-606.58770125,0.00015,30]
[407963447,1772939440772,-206.62344712,0.00015,30]
[407963448,1772939440782,-500.0,0.00015,30]
[407963449,1772939440794,-500.0,0.00015,30]
[407963450,1772939440803,-500.0,0.00015,30]
[407963451,1772939440813,-224.11775496,0.00015,30]
[407963452,1772939440822,-500.0,0.00015,30]
[407963453,1772939440832,-500.0,0.00015,30]
[407963454,1772939440841,-500.0,0.00015,30]
[407963455,1772939440851,-500.0,0.00015,30]
[407963456,1772939440860,-500.0,0.00015,30]
[407963457,1772939440869,-500.0,0.00015,30]
[407963458,1772939440879,-500.0,0.00015,30]
[407963459,1772939440888,-500.0,0.00015,30]
[407963460,1772939440898,-188.08800091,0.00015,30]
[407963461,1772939440907,-153.92086394,0.00015,30]
[407963462,1772939440916,-500.0,0.00015,30]
[407963463,1772939440926,-500.0,0.00015,30]
[407963464,1772939440935,-500.0,0.00015,30]
[407963465,1772939440945,-500.0,0.00015,30]
[407963467,1772939440954,-500.0,0.00015,30]
[407963469,1772939440963,-500.0,0.00015,30]
[407963471,1772939440972,-500.0,0.00015,30]
[407963473,1772939440982,-500.0,0.00015,30]
[407963475,1772939440990,-842.82937471,0.00015,30]
[407963476,1772939440999,-500.0,0.00015,30]
[407963477,1772939441008,-670.0,0.00015,30]
[407963478,1772939441017,-500.0,0.00015,30]
[407963479,1772939441026,-500.0,0.00015,30]
[407963480,1772939441035,-500.0,0.00015,30]
[407963481,1772939441044,-500.0,0.00015,30]
[407963482,1772939441053,-500.0,0.00015,30]
[407963483,1772939441063,-719.62145965,0.00015,30]
[407963484,1772939441072,-711.14388243,0.00015,30]
[407963485,1772939441081,-501.05308382,0.00015,30]
[407963486,1772939441091,-500.0,0.00015,30]
[407963487,1772939441102,-500.0,0.00015,30]
[407963488,1772939441112,-500.0,0.00015,30]
[407963489,1772939441121,-500.0,0.00015,30]
[407963490,1772939441130,-500.0,0.00015,30]
[407963491,1772939441139,-500.0,0.00015,30]
[407963492,1772939441148,-500.0,0.00015,30]
[407963493,1772939441157,-500.0,0.00015,30]
[407963494,1772939441167,-500.0,0.00015,30]
[407963495,1772939441181,-500.0,0.00015,30]
[407963496,1772939441190,-500.0,0.00015,30]
[407963497,1772939441199,-500.0,0.00015,30]
[407963498,1772939441209,-500.0,0.00015,30]
[407963499,1772939441219,-173.98743095,0.00015,30]
[407963500,1772939441230,-500.0,0.00015,30]
[407963501,1772939441239,-500.0,0.00015,30]
[407963502,1772939441248,-500.0,0.00015,30]
[407963503,1772939441257,-500.0,0.00015,30]
[407963504,1772939441267,-348.62050996,0.00015,30]
[407963505,1772939441276,-500.0,0.00015,30]
[407963506,1772939441285,-500.0,0.00015,30]
[407963507,1772939441294,-500.0,0.00015,30]
[407963508,1772939441302,-500.0,0.00015,30]
[407963509,1772939441311,-810.0,0.00015,30]
[407963510,1772939441320,-500.0,0.00015,30]
[407963511,1772939441329,-500.0,0.00015,30]
[407963512,1772939441339,-500.0,0.00015,30]
[407963513,1772939441348,-500.0,0.00015,30]
[407963514,1772939441357,-500.0,0.00015,30]
[407963515,1772939441366,-500.0,0.00015,30]
[407963516,1772939441375,-500.0,0.00015,30]
[407963517,1772939441385,-500.0,0.00015,30]
[407963518,1772939441394,-500.0,0.00015,30]
[407963519,1772939441403,-500.0,0.00015,30]
[407963520,1772939441412,-500.0,0.00015,30]
[407963521,1772939441421,-500.0,0.00015,30]
[407963522,1772939441430,-500.0,0.00015,30]
[407963523,1772939441439,-500.0,0.00015,30]
[407963524,1772939441448,-500.0,0.00015,30]
[407963525,1772939441457,-500.0,0.00015,30]
[407963526,1772939441467,-500.0,0.00015,30]
[407963527,1772939441476,-500.0,0.00015,30]
[407963528,1772939441485,-500.0,0.00015,30]
[407963529,1772939441494,-500.0,0.00015,30]
[407963530,1772939441503,-500.0,0.00015,30]
[407963531,1772939441513,-323.49337924,0.00015,30]
[407963532,1772939441521,-500.0,0.00015,30]
[407963533,1772939441531,-500.0,0.00015,30]
[407963534,1772939441540,-500.0,0.00015,30]
[407963535,1772939441550,-500.0,0.00015,30]
[407963536,1772939441560,-500.0,0.00015,30]
[407963537,1772939441572,-286.66760465,0.00015,30]
[407963538,1772939441582,-500.0,0.00015,30]
[407963539,1772939441596,-500.53466186,0.00015,30]
[407963540,1772939441605,-700.0,0.00015,30]
[407963541,1772939441615,-700.0,0.00015,30]
[407963542,1772939441624,-500.0,0.00015,30]
[407963543,1772939441635,-500.0,0.00015,30]
[407963544,1772939441644,-500.0,0.00015,30]
[407963545,1772939441654,-500.0,0.00015,30]
[407963546,1772939441664,-500.0,0.00015,30]
[407963547,1772939441674,-500.0,0.00015,30]
[407963548,1772939441684,-500.0,0.00015,30]
[407963549,1772939441694,-500.0,0.00015,30]
[407963550,1772939441704,-500.0,0.00015,30]
[407963551,1772939441713,-500.0,0.00015,30]
[407963552,1772939441723,-500.0,0.00015,30]
[407963553,1772939441732,-500.0,0.00015,30]
[407963554,1772939441741,-500.0,0.00015,30]
[407963555,1772939441751,-500.0,0.00015,30]
[407963556,1772939441761,-500.0,0.00015,30]
[407963557,1772939441770,-500.0,0.00015,30]
[407963558,1772939441780,-500.0,0.00015,30]
[407963559,1772939441790,-500.0,0.00015,30]
[407963560,1772939441800,-500.0,0.00015,30]
[407963561,1772939441810,-153.80861355,0.00015,30]
[407963562,1772939441819,-509.84,0.00015094,2]
[407963563,1772939441828,-152.491587,0.00015095,2]
[407963564,1772939441838,-151.0,0.00015095,2]
[407963565,1772939441847,-151.0,0.00015095,2]
[407963566,1772939441856,-151.0,0.00015095,2]
[407963567,1772939441866,-151.0,0.00015095,2]
[407963568,1772939441875,-1004.85033377,0.00015121,2]
[407963569,1772939441885,-1002.61686053,0.00015121,2]
[407963570,1772939441894,-1060.25463069,0.00015121,2]
[407963571,1772939441904,-1001.6045739,0.00015121,2]
[407963572,1772939441913,-1004.15850777,0.00015121,2]
[407963573,1772939441923,-250.0,0.00015182,2]
[407963574,1772939441933,-200.0,0.00015274,2]
[407963575,1772939441943,-1003.20449028,0.00015321,2]
[407963576,1772939441953,-1950.33814562,0.00015367,2]
[407963577,1772939441962,-774.4,0.00015456,2]
[407963578,1772939441975,-210.0,0.00015585,2]
[407963579,1772939441985,-210.0,0.00015585,2]
[407963580,1772939441994,-210.0,0.00015585,2]
[407963581,1772939442004,-210.0,0.00015585,2]
[407963582,1772939442013,-210.0,0.00015585,2]
[407963583,1772939442023,-1248.99518103,0.00015623,2]
[407963584,1772939442033,-587.0,0.00015634,2]
[407963585,1772939442043,-36943.87704586,0.00015698,2]
[407963586,1772939442052,-200.0,0.00015822,2]
[407963587,1772939442061,-1192.34,0.00015847,2]
[407963588,1772939442071,-154.042008,0.0001589,2]
[407963589,1772939442081,-2000.0,0.0001589,2]
[407963590,1772939442090,-433.0,0.00015971,2]
[407963591,1772939442099,-184.92,0.00016113,2]
[407963592,1772939442109,-774.4,0.00016159,2]
[407963593,1772939442119,-206.57720799,0.0001637,2]
[407963594,1772939442129,-151.333102,0.00016438,2]
[407963595,1772939442139,-151.0,0.00016438,2]
[407963596,1772939442149,-2000.0,0.00016632,2]
[407963597,1772939442159,-774.4,0.00016861,2]
[407963598,1772939442168,-507.0,0.00017,2]
[407963599,1772939442178,-300.0,0.00017,2]
[407963600,1772939442188,-151.0,0.0001712,2]
[407963601,1772939442197,-151.0,0.0001712,2]
[407963602,1772939442207,-151.0,0.0001712,2]
[407963603,1772939442218,-823.0,0.00017145,2]
[407963604,1772939442229,-151.0,0.00017215,2]
[407963605,1772939442240,-228.0,0.0001728,2]
[407963606,1772939442462,-1486.25,0.00017287,2]
[407963607,1772939442471,-166.66,0.00017382,2]
[407963608,1772939442480,-1192.34,0.00017608,2]
[407963609,1772939442490,-1486.25,0.00017719,2]
[407963610,1772939442500,-324.5938399,0.00017808,2]
[407963611,1772939442510,-166.66,0.00017955,2]
[407963612,1772939442520,-2726.08,0.00017964,2]
[407963613,1772939442530,-500.0,0.00018027,2]
[407963614,1772939442542,-5530.53,0.00018027,2]
[407963615,1772939442551,-1486.25,0.00018151,2]
[407963616,1772939442567,-2000.0,0.00018295,2]
[407963617,1772939442586,-151.0,0.00018356,2]
[407963618,1772939442600,-151.0,0.00018356,2]
[407963619,1772939442611,-153.534323,0.00018356,2]
[407963620,1772939442619,-39438.79765846,0.00018356,2]
[407963621,1772939442635,-923.43355537,0.00018356,2]
[407963633,1772939443035,-283.58050813,0.00015,2]
[407963635,1772939443045,-268.56439065,0.00018356,2]
[407963641,1772939443140,-5649.19737302,0.00018356,2]
[407963650,1772939445833,-509.04527717,0.00018356,2]
[407963651,1772939445940,-640.56741101,0.00018356,2]
[407963652,1772939445953,-285.360894,0.00018356,2]
[407963656,1772939876791,150.0,0.00016181,120]
[407963657,1772940632036,-270.0,0.00014526,2]
[407963658,1772940632047,-300.0,0.00014534,2]
[407963659,1772940632057,-1200.0,0.00014534,2]
[407963660,1772940632066,-32923.6528,0.00014535,2]
[407963661,1772940632075,-250.0,0.00014555,2]
[407963662,1772940632084,-2841.94352663,0.00015414,2]
[407963663,1772940632094,-200.0,0.00015855,2]
[407963664,1772940632103,-313.32472497,0.0001591,2]
[407963665,1772940632112,-420.0,0.00015914,2]
[407963666,1772940632121,-300.0,0.00015967,2]
[407963667,1772940632131,-23416.33054377,0.00015968,2]
[407963668,1772940632140,-500.0,0.00015973,2]
[407963669,1772940632149,-150.99,0.00015978,2]
[407963670,1772940632158,-720.72,0.00015978,2]
[407963671,1772940632167,-9999.99,0.00015978,2]
[407963672,1772940632176,-7584.28,0.00015978,2]
[407963673,1772940632185,-568.42800531,0.00015979,2]
[407963674,1772940632195,-250.0,0.00015979,2]
[407963675,1772940632205,-189.03928642,0.00015979,2]
[407963676,1772940632214,-303.08094041,0.00015979,2]
[407963677,1772940632223,-1680.0,0.00015987,2]
[407963678,1772940632233,-503.0,0.00016,2]
[407963679,1772940632243,-150.0,0.00016181,2]
[407963680,1772940632253,-455.4851035,0.00016494,2]
[407963682,1772940632262,-1000.0,0.00016521,2]
[407963683,1772940632271,-150.0,0.00016818,2]
[407963684,1772940632280,-4137.6111,0.00016843,2]
[407963685,1772940632290,-150.0,0.00016873,2]
[407963686,1772940632300,-150.0,0.00016908,2]
[407963688,1772940632310,-200.0,0.00016908,2]
[407963690,1772940632318,-150.0,0.00016928,2]
[407963692,1772940632328,-151.0,0.0001694,2]
[407963694,1772940632338,-13099.8834855,0.00016943,2]
[407963696,1772940632350,-8652.22896572,0.00016943,2]
[407963698,1772940632361,-14874.00368388,0.00016943,2]
[407963700,1772940632372,-38254.0047649,0.00016943,2]
[407963702,1772940632383,-150.0,0.00016963,2]
[407963704,1772940632392,-178.87,0.00016971,2]
[407963705,1772940632402,-150.0,0.00016982,2]
[407963706,1772940632412,-2500.0,0.00016992,2]
[407963707,1772940632421,-507.0,0.00017,2]
[407963708,1772940632431,-410.80206865,0.00017014,2]
[407963709,1772940632441,-200.0,0.00017018,2]
[407963710,1772940632451,-3051.93479655,0.00017037,2]
[407963711,1772940632462,-2018.5020399,0.00017037,2]
[407963712,1772940632475,-643.71689058,0.00017037,2]
[407963713,1772940632483,-150.0,0.00017037,2]
[407963714,1772940632493,-1504.49205814,0.00017068,2]
[407963715,1772940632502,-521.79,0.00017082,2]
[407963716,1772940632511,-521.79,0.00017082,2]
[407963717,1772940632520,-510.0,0.00017084,2]
[407963718,1772940632529,-500.0,0.00017091,2]
[407963719,1772940632538,-500.0,0.00017091,2]
[407963720,1772940632548,-500.0,0.00017091,2]
[407963721,1772940632557,-500.0,0.00017091,2]
[407963722,1772940632567,-500.0,0.00017091,2]
[407963723,1772940632576,-500.0,0.00017091,2]
[407963724,1772940632589,-258.93348465,0.00017091,2]
[407963725,1772940632598,-500.0,0.00017091,2]
[407963726,1772940632608,-500.0,0.00017091,2]
[407963727,1772940632617,-500.0,0.00017091,2]
[407963728,1772940632627,-500.0,0.00017091,2]
[407963729,1772940632636,-500.0,0.00017091,2]
[407963730,1772940632646,-500.0,0.00017091,2]
[407963731,1772940632655,-506.57129647,0.00017091,2]
[407963732,1772940632664,-500.0,0.00017091,2]
[407963733,1772940632673,-500.0,0.00017091,2]
[407963734,1772940632683,-500.0,0.00017091,2]
[407963735,1772940632693,-250.0,0.00017092,2]
[407963736,1772940632703,-1000.0,0.00017092,2]
[407963737,1772940632712,-2398.7000009,0.00017092,2]
[407963738,1772940632723,-675.352,0.00017092,2]
[407963743,1772940638086,-534.74842781,0.00017092,2]
[407963745,1772940638097,-3150.75,0.00017092,2]
[407963747,1772940638233,-131755.06628975,0.00017092,2]
[407963748,1772940638247,-78516.32898154,0.00017092,2]
[407963749,1772940638256,-500.0,0.00017092,2]
[407963750,1772940638265,-20086.59814152,0.00017164,2]
[407963751,1772940638275,-500.0,0.00017182,2]
[407963752,1772940638284,-151.0,0.00017182,2]
[407963753,1772940638294,-500.0,0.00017182,2]
[407963754,1772940638306,-151.0,0.00017182,2]
[407963755,1772940638316,-500.0,0.00017182,2]
[407963756,1772940638325,-151.0,0.00017182,2]
[407963757,1772940638335,-500.0,0.00017182,2]
[407963758,1772940638346,-151.0,0.00017182,2]
[407963759,1772940638357,-500.0,0.00017182,2]
[407963760,1772940638367,-151.0,0.00017182,2]
[407963761,1772940638377,-500.0,0.00017182,2]
[407963762,1772940638387,-151.0,0.00017182,2]
[407963763,1772940638397,-500.0,0.00017182,2]
[407963764,1772940638407,-151.0,0.00017182,2]
[407963765,1772940638415,-500.0,0.00017182,2]
[407963766,1772940638425,-151.0,0.00017182,2]
[407963767,1772940638435,-175.96557541,0.00017182,2]
[407963768,1772940638445,-151.0,0.00017182,2]
[407963769,1772940638455,-151.0,0.00017182,2]
[407963770,1772940638466,-151.0,0.00017182,2]
[407963772,1772940638476,-202.30694051,0.00017182,2]
[407963774,1772940638486,-1588.85,0.00017182,2]
[407963775,1772940638495,-521.79,0.00017182,2]
[407963777,1772940638504,-521.79,0.00017182,2]
[407963779,1772940638515,-521.79,0.00017182,2]
[407963780,1772940638524,-500.0,0.00017191,2]
[407963782,1772940638533,-500.0,0.00017191,2]
[407963783,1772940638542,-500.0,0.00017191,2]
[407963784,1772940638552,-513.30795353,0.00017191,2]
[407963785,1772940638563,-3175.4823976,0.00017192,2]
[407963786,1772940638575,-153.368128,0.00017192,2]
[407963787,1772940638586,-151.0,0.00017192,2]
[407963788,1772940638598,-153.081874,0.00017192,2]
[407963789,1772940638609,-151.0,0.00017192,2]
[407963790,1772940638618,-150.0,0.00017243,2]
[407963791,1772940638627,-1908.24427703,0.00017262,2]
[407963792,1772940638636,-151.23763739,0.00017262,2]
[407963793,1772940638646,-1467.33899104,0.00017262,2]
[407963794,1772940638660,-250.0,0.00017262,2]
[407963795,1772940638670,-209.40437684,0.00017262,2]
[407963796,1772940638680,-250.0,0.00017262,2]
[407963797,1772940638691,-250.0,0.00017262,2]
[407963798,1772940638702,-250.0,0.00017262,2]
[407963799,1772940638714,-250.0,0.00017262,2]
[407963800,1772940638724,-250.0,0.00017262,2]
[407963801,1772940638737,-250.0,0.00017262,2]
[407963802,1772940638747,-2500.0,0.00017262,2]
[407963803,1772940638757,-250.0,0.00017262,2]
[407963804,1772940638767,-250.0,0.00017262,2]
[407963805,1772940638777,-500.0,0.00017262,2]
[407963806,1772940638787,-2500.0,0.00017262,2]
[407963807,1772940638796,-250.0,0.00017262,2]
[407963808,1772940638805,-250.0,0.00017262,2]
[407963809,1772940638816,-2500.0,0.00017262,2]
[407963810,1772940638827,-250.0,0.00017262,2]
[407963811,1772940638837,-250.0,0.00017262,2]
[407963812,1772940638846,-250.0,0.00017262,2]
[407963813,1772940638856,-2500.0,0.00017262,2]
[407963814,1772940638865,-250.0,0.00017262,2]
[407963815,1772940638874,-250.0,0.00017262,2]
[407963816,1772940638883,-1107.82990857,0.00017262,2]
[407963817,1772940638892,-250.0,0.00017262,2]
[407963818,1772940638901,-250.0,0.00017262,2]
[407963819,1772940638914,-721.12765535,0.00017262,2]
[407963820,1772940638923,-250.0,0.00017262,2]
[407963821,1772940638932,-249.18944466,0.00017262,2]
[407963822,1772940638941,-1000.0,0.00017262,2]
[407963823,1772940638951,-1000.0,0.00017262,2]
[407963824,1772940638960,-578.20924308,0.00017262,2]
[407963825,1772940638968,-321.49271226,0.00017262,2]
[407963826,1772940638980,-431.69598331,0.00017262,2]
[407963827,1772940638991,-186.74592404,0.00017262,2]
[407963828,1772940639001,-250.0,0.00017262,2]
[407963829,1772940639010,-250.0,0.00017262,2]
[407963830,1772940639019,-250.0,0.00017262,2]
[407963831,1772940639029,-63.10467596,0.00017262,2]
[407963832,1772940639040,-87.89532404,0.00017262,2]
[407963833,1772940639050,-912.61660596,0.00017262,2]
[407963834,1772940639062,-1337.35,0.00017262,2]
[407963835,1772940639073,-750.03339404,0.00017262,2]
[407963836,1772940639082,-414.1702175,0.00017262,2]
[407963837,1772940639119,-279.2217588,0.00017262,2]
[407963838,1772940639129,-1281.37690901,0.00017262,2]
[407963839,1772940639141,-1718.62309099,0.00017262,2]
[407963840,1772940639150,-250.0,0.00017262,2]
[407963841,1772940639159,-3063.09918979,0.00017262,2]
[407963842,1772940639169,-250.0,0.00017262,2]
[407963843,1772940639178,-258.79012954,0.00017262,2]
[407963844,1772940639188,-743.50770149,0.00017262,2]
[407963845,1772940639197,-174.61919141,0.00017262,2]
[407963846,1772940639207,-250.0,0.00017262,2]
[407963847,1772940639216,-250.0,0.00017262,2]
[407963848,1772940639225,-250.0,0.00017262,2]
[407963849,1772940639235,-250.0,0.00017262,2]
[407963850,1772940639244,-250.0,0.00017262,2]
[407963851,1772940639254,-250.0,0.00017262,2]
[407963852,1772940639263,-250.0,0.00017262,2]
[407963853,1772940639272,-250.0,0.00017262,2]
[407963854,1772940639281,-250.0,0.00017262,2]
[407963855,1772940639291,-250.0,0.00017262,2]
[407963856,1772940639300,-250.0,0.00017262,2]
[407963857,1772940639309,-1000.0,0.00017262,2]
[407963858,1772940639318,-760.56776805,0.00017262,2]
[407963859,1772940639327,-200.0,0.00017262,2]
[407963860,1772940639336,-262.90206542,0.00017262,2]
[407963861,1772940639346,-500.0,0.00017262,2]
[407963862,1772940639355,-500.0,0.00017262,2]
[407963863,1772940639364,-500.0,0.00017262,2]
[407963864,1772940639373,-500.0,0.00017262,2]
[407963865,1772940639385,-209.40437684,0.00017262,2]
[407963866,1772940639395,-446.0921664,0.00017262,2]
[407963867,1772940639408,-247.2998099,0.00017262,2]
[407963868,1772940639417,-500.0,0.00017262,2]
[407963869,1772940639430,-239.79369105,0.00017262,2]
[407963870,1772940639441,-260.20630895,0.00017262,2]
[407963871,1772940639451,-500.0,0.00017262,2]
[407963872,1772940639460,-500.0,0.00017262,2]
[407963873,1772940639470,-63.25290877,0.00017262,2]
[407963876,1772940640476,-436.74709123,0.00017262,2]
[407963877,1772940640486,-500.0,0.00017262,2]
[407963878,1772940640495,-500.0,0.00017262,2]
[407963879,1772940640504,-151.0,0.00017317,2]
[407963880,1772940640513,-719.04747942,0.00017317,2]
[407963881,1772940640522,-151.0,0.00017372,2]
[407963882,1772940640531,-745.65223616,0.00017372,2]
[407963883,1772940640541,-587.0,0.00017425,2]
[407963884,1772940640550,-151.0,0.00017427,2]
[407963885,1772940640559,-773.2413689,0.00017427,2]
[407963886,1772940640568,-1588.85,0.00017456,2]
[407963887,1772940640577,-284.51020011,0.00017482,2]
[407963888,1772940640587,-801.85129955,0.00017482,2]
[407963889,1772940640595,-831.51979763,0.00017537,2]
[407963890,1772940640604,-862.28603014,0.00017592,2]
[407963891,1772940640613,-894.19061326,0.00017647,2]
[407963892,1772940640622,-927.27566595,0.00017702,2]
[407963893,1772940640631,-1588.85,0.0001773,2]
[407963894,1772940640641,-961.58486559,0.00017757,2]
[407963895,1772940640650,-217.15233878,0.0001781,2]
[407963896,1772940640662,-500.0,0.0001781,2]
[407963897,1772940640671,-771.01748645,0.0001781,2]
[407963898,1772940640680,-181.08010149,0.0001781,2]
[407963899,1772940640689,-200.0,0.0001781,2]
[407963900,1772940640698,-272.62944185,0.0001781,2]
[407963901,1772940640707,-212.01600458,0.0001781,2]
[407963902,1772940640716,-719.04747942,0.0001781,2]
[407963903,1772940640725,-997.16350561,0.00017812,2]
[407963904,1772940640735,-1588.85,0.00018004,2]
[407963905,1772940640744,-2016.81,0.00018135,2]
[407963906,1772940640753,-350.0,0.00018152,2]
[407963907,1772940640762,-1588.85,0.00018278,2]
[407963908,1772940640771,-854.0,0.00018356,2]
[407963909,1772940640780,-22413.44344032,0.00018356,2]
[407963910,1772940640790,-216.01053215,0.00018358,2]
[407963911,1772940640799,-500.0,0.00018358,2]
[407963912,1772940640810,-799.54513345,0.00018358,2]
[407963913,1772940640819,-187.78006525,0.00018358,2]
[407963914,1772940640828,-200.0,0.00018358,2]
[407963915,1772940640837,-282.71673119,0.00018358,2]
[407963916,1772940640846,-217.40856809,0.00018358,2]
[407963917,1772940640855,-2000.0,0.00018481,2]
[407963918,1772940640866,-166.66,0.00018529,2]
[407963919,1772940640882,-1588.85,0.00018552,2]
[407963920,1772940640891,-2016.81,0.00018588,2]
[407963921,1772940640900,-3021.5,0.00018659,2]
[407963922,1772940640912,-1588.85,0.00018825,2]
[407963923,1772940640921,-500.0,0.00018906,2]
[407963924,1772940640931,-241.22573238,0.00018906,2]
[407963925,1772940640940,-194.72792766,0.00018906,2]
[407963926,1772940640949,-200.0,0.00018906,2]
[407963927,1772940640961,-293.17725025,0.00018906,2]
[407963928,1772940640970,-500.0,0.00018999,2]
[407963929,1772940640979,-683.69197783,0.00019,2]
[407963930,1772940640991,-160.78886575,0.00019,2]
[407963931,1772940640999,-4670.37945092,0.00019,2]
[407963932,1772940641008,-350.0,0.00019,2]
[407963933,1772940641017,-2016.81,0.00019041,2]
[407963934,1772940641027,-823.0,0.0001908,2]
[407963935,1772940641035,-1588.85,0.00019099,2]
[407963936,1772940641045,-166.66,0.00019103,2]
[407963937,1772940641054,-481.41,0.00019138,2]
[407963938,1772940641064,-481.41,0.00019141,2]
[407963939,1772940641073,-1010.21,0.00019178,30]
[407963940,1772940641082,-827.91744,0.00019178,2]
[407963941,1772940641091,-827.91744,0.00019178,2]
[407963942,1772940641100,-827.91744,0.00019178,2]
[407963943,1772940641109,-827.91744,0.00019178,2]
[407963944,1772940641118,-250.0,0.00019194,2]
[407963945,1772940641127,-500.0,0.00019199,2]
[407963946,1772940641137,-500.0,0.00019199,2]
[407963947,1772940641146,-2000.0,0.000192,2]
[407963948,1772940641155,-481.41,0.00019207,2]
[407963949,1772940641164,-481.41,0.00019292,2]
[407963950,1772940641173,-1192.34,0.00019369,2]
[407963951,1772940641182,-1588.85,0.00019373,2]
[407963952,1772940641191,-481.41,0.00019393,2]
[407963953,1772940641200,-481.41,0.00019429,2]
[407963954,1772940641209,-201.93286099,0.00019454,2]
[407963955,1772940641218,-200.0,0.00019454,2]
[407963956,1772940641227,-304.02480851,0.00019454,2]
[407963957,1772940641236,-481.41,0.00019479,2]
[407963958,1772940641245,-852.1,0.00019493,2]
[407963959,1772940641254,-2016.81,0.00019495,2]
[407963960,1772940641271,-481.47455123,0.00019518,2]
[407963961,1772940641283,-5000.0,0.00019637,2]
[407963962,1772940641292,-1588.85,0.00019647,2]
[407963963,1772940641302,-166.66,0.00019677,2]
[407963964,1772940641311,-151.0,0.00019737,2]
[407963965,1772940641321,-151.0,0.00019737,2]
[407963966,1772940641330,-151.0,0.00019737,2]
[407963967,1772940641340,-152.981753,0.00019737,2]
[407963968,1772940641350,-827.91744,0.00019737,2]
[407963969,1772940641361,-827.91744,0.00019737,2]
[407963970,1772940641371,-827.91744,0.00019737,2]
[407963971,1772940641379,-827.91744,0.00019737,2]
[407963972,1772940641388,-250.09,0.0001979,2]
[407963973,1772940641398,-300.0,0.000198,7]
[407963974,1772940641407,-1007.43613076,0.000199,2]
[407963975,1772940641417,-700.0,0.000199,7]
[407963976,1772940641426,-702.69324486,0.000199,2]
[407963977,1772940641435,-935.13255855,0.000199,2]
[407963978,1772940641444,-258.59668593,0.000199,2]
[407963979,1772940641454,-1588.85,0.00019921,2]
[407963980,1772940641463,-2016.81,0.00019948,2]
[407963981,1772940641472,-2234.0,0.00019958,2]
[407963982,1772940641481,-2000.0,0.00019958,2]
[407963983,1772940641490,-193.33589308,0.0001999,2]
[407963984,1772940641499,-500.0,0.00019999,2]
[407963985,1772940641508,-500.0,0.00019999,2]
[407963986,1772940641518,-500.0,0.00019999,2]
[407963987,1772940641527,-500.0,0.00019999,2]
[407963988,1772940641536,-500.0,0.00019999,2]
[407963989,1772940641545,-500.0,0.00019999,2]